[Event "Titled Tuesday Blitz May 2 Early 2023"]
[White "Clawitter, Craig"]
[Black "Gracia Alvarez, Gerardo Antonio"]
[WhiteFideId "2023105"]
[BlackFideId "5109124"]
[WhiteElo "2050"]
[BlackElo "2160"]
[Result "0-1"]
[Round "08"]
[TimeControl "180+2"]
[Date "2023.05.02"]
[WhiteClock "0:00:01"]
[BlackClock "0:00:04"]

1. e4 {[%clk 0:03:00]}  c5 {[%clk 0:03:00]} 2. Nf3 {[%clk 0:03:00]}  Nc6 {[%clk 0:03:00]} 3. d4 {[%clk 0:03:01]}  cxd4 {[%clk 0:03:01]} 4. Nxd4 {[%clk 0:03:02]}  Nf6 {[%clk 0:03:01]} 5. Nc3 {[%clk 0:03:02]}  e5 {[%clk 0:03:02]} 6. Ndb5 {[%clk 0:03:03]}  h6 {[%clk 0:03:02]} 7. Nd5 {[%clk 0:02:52]}  Nxd5 {[%clk 0:03:01]} 8. exd5 {[%clk 0:02:51]}  a6 {[%clk 0:03:01]} 9. Nc3 {[%clk 0:02:50]}  Nd4 {[%clk 0:03:01]} 10. Be3 {[%clk 0:02:50]}  Nf5 {[%clk 0:03:00]} 11. Bd3 {[%clk 0:02:47]}  d6 {[%clk 0:02:54]} 12. O-O {[%clk 0:02:44]}  g6 {[%clk 0:02:53]} 13. a4 {[%clk 0:02:22]}  Bg7 {[%clk 0:02:50]} 14. a5 {[%clk 0:02:22]}  Nxe3 {[%clk 0:02:49]} 15. fxe3 {[%clk 0:02:22]}  f5 {[%clk 0:02:46]} 16. e4 {[%clk 0:01:57]}  O-O {[%clk 0:02:43]} 17. Qd2 {[%clk 0:01:40]}  Bd7 {[%clk 0:02:39]} 18. Na4 {[%clk 0:01:37]}  fxe4 {[%clk 0:02:01]} 19. Rxf8+ {[%clk 0:01:20]}  Bxf8 {[%clk 0:01:48]} 20. Bxe4 {[%clk 0:01:18]}  Qh4 {[%clk 0:01:14]} 21. Nb6 {[%clk 0:00:49]}  Rd8 {[%clk 0:01:13]} 22. Bxg6 {[%clk 0:00:43]}  Bg4 {[%clk 0:00:55]} 23. Rf1 {[%clk 0:00:36]}  Bg7 {[%clk 0:00:49]} 24. Bf7+ {[%clk 0:00:27]}  Kh8 {[%clk 0:00:48]} 25. Qd3 {[%clk 0:00:25]}  Qg5 {[%clk 0:00:43]} 26. Nc4 {[%clk 0:00:11]}  Rf8 {[%clk 0:00:16]} 27. Ne3 {[%clk 0:00:10]}  Bd7 {[%clk 0:00:08]} 28. Be6 {[%clk 0:00:10]}  Bb5 {[%clk 0:00:06]} 29. c4 {[%clk 0:00:09]}  Rxf1+ {[%clk 0:00:05]} 30. Nxf1 {[%clk 0:00:09]}  Be8 {[%clk 0:00:06]} 31. Qf5 {[%clk 0:00:07]}  Qe7 {[%clk 0:00:06]} 32. Ng3 {[%clk 0:00:06]}  e4 {[%clk 0:00:05]} 33. Nxe4 {[%clk 0:00:07]}  Bxb2 {[%clk 0:00:06]} 34. Qf4 {[%clk 0:00:05]}  Bg7 {[%clk 0:00:05]} 35. Qxd6 {[%clk 0:00:05]}  Qh4 {[%clk 0:00:05]} 36. Ng3 {[%clk 0:00:01]}  Qd4+ {[%clk 0:00:04]} 0-1


[Site "https://www.chess.com"]

[Event "Titled Tuesday Blitz May 2 Early 2023"]
[White "Gatterer, Florian"]
[Black "Srdanovic, Jovana"]
[WhiteFideId "811688"]
[BlackFideId "954810"]
[WhiteElo "2221"]
[BlackElo "2145"]
[Result "1-0"]
[Round "08"]
[TimeControl "180+2"]
[Date "2023.05.02"]
[WhiteClock "0:00:08"]
[BlackClock "0:00:04"]

1. e4 {[%clk 0:03:00]}  c6 {[%clk 0:03:00]} 2. d4 {[%clk 0:02:59]}  d5 {[%clk 0:03:00]} 3. e5 {[%clk 0:02:59]}  Na6 {[%clk 0:03:01]} 4. c3 {[%clk 0:02:56]}  Nc7 {[%clk 0:02:59]} 5. Bd3 {[%clk 0:02:54]}  g6 {[%clk 0:02:56]} 6. Ne2 {[%clk 0:02:51]}  h5 {[%clk 0:02:55]} 7. O-O {[%clk 0:02:49]}  Bh6 {[%clk 0:02:46]} 8. a4 {[%clk 0:02:48]}  Bxc1 {[%clk 0:02:44]} 9. Qxc1 {[%clk 0:02:49]}  Nh6 {[%clk 0:02:44]} 10. a5 {[%clk 0:02:46]}  Bf5 {[%clk 0:02:43]} 11. Bxf5 {[%clk 0:02:41]}  Nxf5 {[%clk 0:02:44]} 12. b4 {[%clk 0:02:38]}  e6 {[%clk 0:02:38]} 13. g3 {[%clk 0:02:35]}  Nb5 {[%clk 0:02:25]} 14. h4 {[%clk 0:02:22]}  Qe7 {[%clk 0:02:16]} 15. Nd2 {[%clk 0:02:17]}  g5 {[%clk 0:02:07]} 16. hxg5 {[%clk 0:02:12]}  Qxg5 {[%clk 0:02:03]} 17. a6 {[%clk 0:01:41]}  b6 {[%clk 0:01:54]} 18. Nf3 {[%clk 0:01:40]}  Qg4 {[%clk 0:01:47]} 19. Kg2 {[%clk 0:01:40]}  Kd7 {[%clk 0:01:36]} 20. Qf4 {[%clk 0:01:22]}  Qxf4 {[%clk 0:01:12]} 21. gxf4 {[%clk 0:01:20]}  Rag8+ {[%clk 0:01:09]} 22. Kh2 {[%clk 0:01:09]}  Rg4 {[%clk 0:01:00]} 23. Rg1 {[%clk 0:01:07]}  Nh4 {[%clk 0:00:50]} 24. Nxh4 {[%clk 0:00:59]}  Rxh4+ {[%clk 0:00:50]} 25. Kg3 {[%clk 0:00:59]}  Rg4+ {[%clk 0:00:45]} 26. Kf3 {[%clk 0:00:59]}  Rhg8 {[%clk 0:00:41]} 27. Rxg4 {[%clk 0:00:59]}  Rxg4 {[%clk 0:00:41]} 28. Rh1 {[%clk 0:00:57]}  Nc7 {[%clk 0:00:31]} 29. Rxh5 {[%clk 0:00:56]}  Rg7 {[%clk 0:00:32]} 30. Rh1 {[%clk 0:00:54]}  Nxa6 {[%clk 0:00:32]} 31. Ra1 {[%clk 0:00:52]}  Nc7 {[%clk 0:00:26]} 32. Rxa7 {[%clk 0:00:52]}  Rg8 {[%clk 0:00:19]} 33. f5 {[%clk 0:00:41]}  Ra8 {[%clk 0:00:18]} 34. Rxa8 {[%clk 0:00:37]}  Nxa8 {[%clk 0:00:18]} 35. f6 {[%clk 0:00:36]}  Nc7 {[%clk 0:00:17]} 36. Ke3 {[%clk 0:00:35]}  c5 {[%clk 0:00:15]} 37. bxc5 {[%clk 0:00:35]}  bxc5 {[%clk 0:00:16]} 38. f4 {[%clk 0:00:28]}  c4 {[%clk 0:00:15]} 39. Ng3 {[%clk 0:00:28]}  Nb5 {[%clk 0:00:16]} 40. Kd2 {[%clk 0:00:26]}  Ke8 {[%clk 0:00:14]} 41. f5 {[%clk 0:00:26]}  Kf8 {[%clk 0:00:13]} 42. fxe6 {[%clk 0:00:26]}  fxe6 {[%clk 0:00:14]} 43. Nh5 {[%clk 0:00:26]}  Kf7 {[%clk 0:00:14]} 44. Nf4 {[%clk 0:00:24]}  Na3 {[%clk 0:00:12]} 45. Nh3 {[%clk 0:00:23]}  Nb1+ {[%clk 0:00:11]} 46. Kc2 {[%clk 0:00:22]}  Na3+ {[%clk 0:00:11]} 47. Kb2 {[%clk 0:00:22]}  Nb5 {[%clk 0:00:12]} 48. Ng5+ {[%clk 0:00:22]}  Ke8 {[%clk 0:00:10]} 49. Nxe6 {[%clk 0:00:22]}  Kf7 {[%clk 0:00:08]} 50. Nf4 {[%clk 0:00:22]}  Nc7 {[%clk 0:00:07]} 51. Ka3 {[%clk 0:00:20]}  Nb5+ {[%clk 0:00:06]} 52. Kb4 {[%clk 0:00:20]}  Nc7 {[%clk 0:00:07]} 53. Kc5 {[%clk 0:00:19]}  Ne8 {[%clk 0:00:07]} 54. Kc6 {[%clk 0:00:17]}  Kf8 {[%clk 0:00:04]} 55. Kxd5 {[%clk 0:00:17]}  Nc7+ {[%clk 0:00:04]} 56. Kxc4 {[%clk 0:00:17]}  Ne8 {[%clk 0:00:05]} 57. d5 {[%clk 0:00:17]}  Nc7 {[%clk 0:00:05]} 58. e6 {[%clk 0:00:17]}  Ne8 {[%clk 0:00:05]} 59. Kc5 {[%clk 0:00:16]}  Kg8 {[%clk 0:00:04]} 60. Nh5 {[%clk 0:00:15]}  Kf8 {[%clk 0:00:04]} 61. Kd4 {[%clk 0:00:14]}  Nc7 {[%clk 0:00:05]} 62. c4 {[%clk 0:00:14]}  Na6 {[%clk 0:00:05]} 63. c5 {[%clk 0:00:14]}  Nb4 {[%clk 0:00:05]} 64. d6 {[%clk 0:00:14]}  Nc6+ {[%clk 0:00:06]} 65. Ke4 {[%clk 0:00:14]}  Nb8 {[%clk 0:00:04]} 66. Kd5 {[%clk 0:00:14]}  Na6 {[%clk 0:00:04]} 67. c6 {[%clk 0:00:14]}  Nb4+ {[%clk 0:00:03]} 68. Kc5 {[%clk 0:00:14]}  Nd3+ {[%clk 0:00:03]} 69. Kb6 {[%clk 0:00:14]}  Ne5 {[%clk 0:00:03]} 70. c7 {[%clk 0:00:13]}  Nc4+ {[%clk 0:00:01]} 71. Kc5 {[%clk 0:00:12]}  Nxd6 {[%clk 0:00:02]} 72. Kxd6 {[%clk 0:00:11]}  Kg8 {[%clk 0:00:02]} 73. c8=Q+ {[%clk 0:00:09]}  Kh7 {[%clk 0:00:03]} 74. Qd7+ {[%clk 0:00:09]}  Kg6 {[%clk 0:00:03]} 75. Qg7+ {[%clk 0:00:09]}  Kf5 {[%clk 0:00:04]} 76. f7 {[%clk 0:00:08]} 1-0


[Site "https://www.chess.com"]

[Event "Titled Tuesday Blitz May 2 Early 2023"]
[White "Vivas Zamora, Fabian Ernesto"]
[Black "Kostiukov, Alexandr"]
[WhiteFideId "3902480"]
[BlackFideId "14108100"]
[WhiteElo "2262"]
[BlackElo "2202"]
[Result "1-0"]
[Round "08"]
[TimeControl "180+2"]
[Date "2023.05.02"]
[WhiteClock "0:00:59"]
[BlackClock "0:00:15"]

1. e4 {[%clk 0:02:58]}  c5 {[%clk 0:02:59]} 2. Nc3 {[%clk 0:02:56]}  g6 {[%clk 0:02:59]} 3. Bc4 {[%clk 0:02:50]}  Bg7 {[%clk 0:02:58]} 4. Qf3 {[%clk 0:02:51]}  e6 {[%clk 0:02:54]} 5. Nb5 {[%clk 0:02:50]}  d6 {[%clk 0:02:44]} 6. Qg3 {[%clk 0:02:44]}  e5 {[%clk 0:02:03]} 7. Qd3 {[%clk 0:02:32]}  Ke7 {[%clk 0:01:59]} 8. a4 {[%clk 0:02:07]}  Nc6 {[%clk 0:01:57]} 9. Qf3 {[%clk 0:01:42]}  Nf6 {[%clk 0:01:50]} 10. Ne2 {[%clk 0:01:40]}  Bg4 {[%clk 0:01:26]} 11. Qe3 {[%clk 0:01:34]}  Nd4 {[%clk 0:01:24]} 12. Nbxd4 {[%clk 0:01:25]}  cxd4 {[%clk 0:01:24]} 13. Qd3 {[%clk 0:01:17]}  Re8 {[%clk 0:00:34]} 14. O-O {[%clk 0:01:11]}  Kf8 {[%clk 0:00:31]} 15. f4 {[%clk 0:01:09]}  d5 {[%clk 0:00:15]} 16. exd5 {[%clk 0:00:59]} 1-0


[Site "https://www.chess.com"]

[Event "Titled Tuesday Blitz May 2 Early 2023"]
[White "Panda Sambit"]
[Black "Hinds, Nathan"]
[WhiteFideId "25091794"]
[BlackFideId "7400730"]
[WhiteElo "2272"]
[BlackElo "2001"]
[Result "1-0"]
[Round "08"]
[TimeControl "180+2"]
[Date "2023.05.02"]
[WhiteClock "0:00:18"]
[BlackClock "0:00:07"]

1. Nf3 {[%clk 0:01:47]}  c6 {[%clk 0:02:58]} 2. c4 {[%clk 0:01:47]}  d5 {[%clk 0:02:58]} 3. cxd5 {[%clk 0:01:48]}  cxd5 {[%clk 0:02:59]} 4. Qb3 {[%clk 0:01:46]}  Nf6 {[%clk 0:02:59]} 5. e3 {[%clk 0:01:46]}  g6 {[%clk 0:02:59]} 6. Nc3 {[%clk 0:01:45]}  Bg7 {[%clk 0:02:59]} 7. Bb5+ {[%clk 0:01:46]}  Nc6 {[%clk 0:02:59]} 8. O-O {[%clk 0:01:46]}  O-O {[%clk 0:03:00]} 9. d4 {[%clk 0:01:45]}  e6 {[%clk 0:02:57]} 10. Bxc6 {[%clk 0:01:45]}  bxc6 {[%clk 0:02:57]} 11. Bd2 {[%clk 0:01:46]}  Nd7 {[%clk 0:02:41]} 12. Rfc1 {[%clk 0:01:45]}  c5 {[%clk 0:02:41]} 13. Qd1 {[%clk 0:01:27]}  cxd4 {[%clk 0:02:37]} 14. exd4 {[%clk 0:01:27]}  Nb6 {[%clk 0:02:35]} 15. Bf4 {[%clk 0:01:26]}  Bb7 {[%clk 0:02:15]} 16. b3 {[%clk 0:01:25]}  Rc8 {[%clk 0:02:15]} 17. Nb5 {[%clk 0:01:25]}  a6 {[%clk 0:01:47]} 18. Nd6 {[%clk 0:01:03]}  Rxc1 {[%clk 0:01:43]} 19. Rxc1 {[%clk 0:01:04]}  Qd7 {[%clk 0:01:38]} 20. Nxb7 {[%clk 0:00:58]}  Qxb7 {[%clk 0:01:37]} 21. Rc7 {[%clk 0:00:59]}  Qa8 {[%clk 0:01:32]} 22. Qd2 {[%clk 0:01:00]}  Rc8 {[%clk 0:01:26]} 23. Qc3 {[%clk 0:00:52]}  Qb8 {[%clk 0:00:56]} 24. Qc6 {[%clk 0:00:51]}  Bf8 {[%clk 0:00:29]} 25. Ng5 {[%clk 0:00:45]}  h6 {[%clk 0:00:25]} 26. Nxf7 {[%clk 0:00:44]}  Rxc7 {[%clk 0:00:24]} 27. Bxc7 {[%clk 0:00:43]}  Qc8 {[%clk 0:00:21]} 28. Nxh6+ {[%clk 0:00:36]}  Bxh6 {[%clk 0:00:21]} 29. Qxb6 {[%clk 0:00:37]}  Bg7 {[%clk 0:00:20]} 30. g3 {[%clk 0:00:27]}  Kh7 {[%clk 0:00:20]} 31. h4 {[%clk 0:00:25]}  Qf8 {[%clk 0:00:19]} 32. Be5 {[%clk 0:00:18]}  Bxe5 {[%clk 0:00:15]} 33. dxe5 {[%clk 0:00:19]}  Qc8 {[%clk 0:00:13]} 34. Kg2 {[%clk 0:00:17]}  Kh6 {[%clk 0:00:11]} 35. Qe3+ {[%clk 0:00:17]}  Kg7 {[%clk 0:00:11]} 36. Qg5 {[%clk 0:00:17]}  Qc6 {[%clk 0:00:09]} 37. h5 {[%clk 0:00:17]}  Kf7 {[%clk 0:00:09]} 38. Kh2 {[%clk 0:00:18]}  gxh5 {[%clk 0:00:09]} 39. Qxh5+ {[%clk 0:00:19]}  Ke7 {[%clk 0:00:10]} 40. Qh7+ {[%clk 0:00:19]}  Ke8 {[%clk 0:00:10]} 41. g4 {[%clk 0:00:18]}  d4 {[%clk 0:00:11]} 42. Qg8+ {[%clk 0:00:16]}  Ke7 {[%clk 0:00:11]} 43. Qg7+ {[%clk 0:00:16]}  Ke8 {[%clk 0:00:11]} 44. Qg6+ {[%clk 0:00:17]}  Ke7 {[%clk 0:00:11]} 45. g5 {[%clk 0:00:17]}  Qf3 {[%clk 0:00:10]} 46. Qf6+ {[%clk 0:00:16]}  Qxf6 {[%clk 0:00:08]} 47. gxf6+ {[%clk 0:00:16]}  Kf7 {[%clk 0:00:09]} 48. Kg3 {[%clk 0:00:17]}  Kg6 {[%clk 0:00:07]} 49. Kf3 {[%clk 0:00:17]}  Kf5 {[%clk 0:00:07]} 50. f7 {[%clk 0:00:16]}  Kxe5 {[%clk 0:00:07]} 51. f8=Q {[%clk 0:00:17]}  Kd5 {[%clk 0:00:07]} 52. Ke2 {[%clk 0:00:18]} 1-0


[Site "https://www.chess.com"]

[Event "Titled Tuesday Blitz May 2 Early 2023"]
[White "Sanhueza, Cristian"]
[Black "Kubatko, Ivan"]
[WhiteFideId "116815"]
[BlackFideId "24111473"]
[WhiteElo "2219"]
[BlackElo "2285"]
[Result "1-0"]
[Round "08"]
[TimeControl "180+2"]
[Date "2023.05.02"]
[WhiteClock "0:00:54"]
[BlackClock "0:00:04"]

1. e4 {[%clk 0:03:00]}  d5 {[%clk 0:02:59]} 2. exd5 {[%clk 0:03:00]}  Qxd5 {[%clk 0:03:00]} 3. Nc3 {[%clk 0:03:01]}  Qa5 {[%clk 0:03:00]} 4. d4 {[%clk 0:03:01]}  Nf6 {[%clk 0:03:01]} 5. Bd2 {[%clk 0:03:01]}  c6 {[%clk 0:02:59]} 6. Bc4 {[%clk 0:03:01]}  Bf5 {[%clk 0:02:59]} 7. Nf3 {[%clk 0:02:58]}  e6 {[%clk 0:02:58]} 8. Qe2 {[%clk 0:02:58]}  Nbd7 {[%clk 0:02:57]} 9. Ne5 {[%clk 0:02:50]}  Qb6 {[%clk 0:02:40]} 10. O-O-O {[%clk 0:02:43]}  Nxe5 {[%clk 0:02:10]} 11. dxe5 {[%clk 0:02:36]}  Nd7 {[%clk 0:02:09]} 12. g4 {[%clk 0:02:22]}  Bg6 {[%clk 0:02:08]} 13. f4 {[%clk 0:02:23]}  O-O-O {[%clk 0:01:48]} 14. Ne4 {[%clk 0:02:17]}  Nc5 {[%clk 0:01:09]} 15. Nxc5 {[%clk 0:01:45]}  Bxc5 {[%clk 0:01:09]} 16. h4 {[%clk 0:01:33]}  Rxd2 {[%clk 0:00:49]} 17. Rxd2 {[%clk 0:01:22]}  Be3 {[%clk 0:00:49]} 18. Kb1 {[%clk 0:01:22]}  Bxd2 {[%clk 0:00:47]} 19. Qxd2 {[%clk 0:01:23]}  Rd8 {[%clk 0:00:45]} 20. Qe2 {[%clk 0:01:23]}  Qd4 {[%clk 0:00:41]} 21. Rf1 {[%clk 0:01:16]}  Be4 {[%clk 0:00:30]} 22. f5 {[%clk 0:01:14]}  Qxe5 {[%clk 0:00:15]} 23. fxe6 {[%clk 0:01:12]}  fxe6 {[%clk 0:00:13]} 24. Re1 {[%clk 0:01:11]}  Rd4 {[%clk 0:00:09]} 25. Bd3 {[%clk 0:01:09]}  Rxd3 {[%clk 0:00:09]} 26. cxd3 {[%clk 0:01:00]}  Bxd3+ {[%clk 0:00:09]} 27. Qxd3 {[%clk 0:01:00]}  Qxe1+ {[%clk 0:00:09]} 28. Kc2 {[%clk 0:01:01]}  Qxh4 {[%clk 0:00:07]} 29. Qe4 {[%clk 0:00:59]}  Qh2+ {[%clk 0:00:07]} 30. Kb1 {[%clk 0:00:59]}  Qg1+ {[%clk 0:00:06]} 31. Kc2 {[%clk 0:00:59]}  Qh2+ {[%clk 0:00:07]} 32. Kb1 {[%clk 0:00:58]}  Kd7 {[%clk 0:00:07]} 33. Qd4+ {[%clk 0:00:56]}  Ke8 {[%clk 0:00:05]} 34. Qxa7 {[%clk 0:00:55]}  Qh1+ {[%clk 0:00:04]} 35. Kc2 {[%clk 0:00:55]}  Qe4+ {[%clk 0:00:04]} 36. Kc1 {[%clk 0:00:54]}  Qe1+ {[%clk 0:00:04]} 37. Kc2 {[%clk 0:00:54]}  Qe2+ {[%clk 0:00:05]} 38. Kc1 {[%clk 0:00:54]}  Qe3+ {[%clk 0:00:04]} 39. Qxe3 {[%clk 0:00:54]} 1-0


[Site "https://www.chess.com"]

[Event "Titled Tuesday Blitz May 2 Early 2023"]
[White "Thiel, Thomas"]
[Black "Toktomushev, Teimur"]
[WhiteFideId "4615964"]
[BlackFideId "14176726"]
[WhiteElo "2234"]
[BlackElo "2116"]
[Result "0-1"]
[Round "08"]
[TimeControl "180+2"]
[Date "2023.05.02"]
[WhiteClock "0:00:04"]
[BlackClock "0:00:01"]

1. e4 {[%clk 0:03:00]}  c5 {[%clk 0:02:59]} 2. Nc3 {[%clk 0:02:58]}  e6 {[%clk 0:02:58]} 3. Nge2 {[%clk 0:02:56]}  a6 {[%clk 0:02:56]} 4. g3 {[%clk 0:02:55]}  b5 {[%clk 0:02:56]} 5. Bg2 {[%clk 0:02:53]}  Bb7 {[%clk 0:02:57]} 6. d4 {[%clk 0:02:52]}  cxd4 {[%clk 0:02:55]} 7. Nxd4 {[%clk 0:02:53]}  Nf6 {[%clk 0:02:56]} 8. O-O {[%clk 0:02:51]}  b4 {[%clk 0:02:56]} 9. Na4 {[%clk 0:02:49]}  Nxe4 {[%clk 0:02:23]} 10. Re1 {[%clk 0:02:36]}  d5 {[%clk 0:02:14]} 11. c4 {[%clk 0:02:34]}  bxc3 {[%clk 0:02:07]} 12. Nxc3 {[%clk 0:02:34]}  Nxc3 {[%clk 0:01:25]} 13. bxc3 {[%clk 0:02:32]}  Be7 {[%clk 0:01:25]} 14. c4 {[%clk 0:01:51]}  O-O {[%clk 0:01:16]} 15. cxd5 {[%clk 0:01:49]}  Bxd5 {[%clk 0:01:15]} 16. Nf5 {[%clk 0:01:44]}  Bxg2 {[%clk 0:01:14]} 17. Nxe7+ {[%clk 0:01:41]}  Qxe7 {[%clk 0:01:14]} 18. Kxg2 {[%clk 0:01:40]}  Nc6 {[%clk 0:01:03]} 19. Bb2 {[%clk 0:01:34]}  Qb7 {[%clk 0:00:42]} 20. Rb1 {[%clk 0:00:57]}  Ne5+ {[%clk 0:00:39]} 21. Kh3 {[%clk 0:00:56]}  Nf3 {[%clk 0:00:24]} 22. Bxg7 {[%clk 0:00:37]}  Qd5 {[%clk 0:00:08]} 23. Qxd5 {[%clk 0:00:35]}  exd5 {[%clk 0:00:09]} 24. Bxf8 {[%clk 0:00:34]}  Nxe1 {[%clk 0:00:09]} 25. Rxe1 {[%clk 0:00:32]}  Kxf8 {[%clk 0:00:08]} 26. Rd1 {[%clk 0:00:30]}  Rd8 {[%clk 0:00:08]} 27. Rd4 {[%clk 0:00:28]}  Ke7 {[%clk 0:00:05]} 28. Kg2 {[%clk 0:00:28]}  Kd6 {[%clk 0:00:05]} 29. Kf3 {[%clk 0:00:27]}  Kc5 {[%clk 0:00:04]} 30. Ke3 {[%clk 0:00:23]}  Re8+ {[%clk 0:00:03]} 31. Kd3 {[%clk 0:00:23]}  Rb8 {[%clk 0:00:03]} 32. Ra4 {[%clk 0:00:19]}  Rb2 {[%clk 0:00:04]} 33. Rf4 {[%clk 0:00:07]}  Rxa2 {[%clk 0:00:04]} 34. Rxf7 {[%clk 0:00:06]}  Ra3+ {[%clk 0:00:03]} 35. Ke2 {[%clk 0:00:04]}  Kd4 {[%clk 0:00:01]} 0-1


[Site "https://www.chess.com"]

[Event "Titled Tuesday Blitz May 2 Early 2023"]
[White "Fernandez Siles, Luis"]
[Black "Wimalasuriya, Kasun M."]
[WhiteFideId "2209420"]
[BlackFideId "9906789"]
[WhiteElo "2195"]
[BlackElo "1781"]
[Result "1-0"]
[Round "08"]
[TimeControl "180+2"]
[Date "2023.05.02"]
[WhiteClock "0:00:18"]
[BlackClock "0:01:44"]

1. e4 {[%clk 0:03:00]}  c5 {[%clk 0:02:59]} 2. Nf3 {[%clk 0:03:00]}  Nc6 {[%clk 0:02:59]} 3. Bb5 {[%clk 0:03:00]}  g6 {[%clk 0:02:59]} 4. Bxc6 {[%clk 0:02:58]}  bxc6 {[%clk 0:02:58]} 5. d3 {[%clk 0:02:57]}  Bg7 {[%clk 0:02:58]} 6. O-O {[%clk 0:02:57]}  Nh6 {[%clk 0:02:56]} 7. h3 {[%clk 0:02:55]}  O-O {[%clk 0:02:55]} 8. Nc3 {[%clk 0:02:54]}  d6 {[%clk 0:02:56]} 9. Bg5 {[%clk 0:02:52]}  f6 {[%clk 0:02:55]} 10. Be3 {[%clk 0:02:50]}  Nf7 {[%clk 0:02:54]} 11. a3 {[%clk 0:02:45]}  Rb8 {[%clk 0:02:54]} 12. Rb1 {[%clk 0:02:45]}  g5 {[%clk 0:02:53]} 13. Nd2 {[%clk 0:02:40]}  Ne5 {[%clk 0:02:49]} 14. b4 {[%clk 0:02:36]}  cxb4 {[%clk 0:02:48]} 15. axb4 {[%clk 0:02:37]}  Rb7 {[%clk 0:02:47]} 16. d4 {[%clk 0:02:29]}  Ng6 {[%clk 0:02:43]} 17. Nc4 {[%clk 0:02:26]}  Be6 {[%clk 0:02:42]} 18. Na5 {[%clk 0:02:26]}  Rc7 {[%clk 0:02:42]} 19. Qd2 {[%clk 0:02:19]}  Qd7 {[%clk 0:02:41]} 20. d5 {[%clk 0:02:13]}  cxd5 {[%clk 0:02:39]} 21. Nxd5 {[%clk 0:02:02]}  Rcc8 {[%clk 0:02:31]} 22. c4 {[%clk 0:01:48]}  Nh4 {[%clk 0:02:28]} 23. f4 {[%clk 0:01:28]}  Bxh3 {[%clk 0:02:17]} 24. gxh3 {[%clk 0:01:23]}  Qxh3 {[%clk 0:02:16]} 25. Nxe7+ {[%clk 0:01:11]}  Kh8 {[%clk 0:02:14]} 26. Nxc8 {[%clk 0:01:11]}  Rxc8 {[%clk 0:02:12]} 27. Bd4 {[%clk 0:01:00]}  Qg3+ {[%clk 0:01:52]} 28. Kh1 {[%clk 0:00:59]}  Nf3 {[%clk 0:01:50]} 29. Rxf3 {[%clk 0:00:54]}  Qxf3+ {[%clk 0:01:50]} 30. Qg2 {[%clk 0:00:50]}  Qxf4 {[%clk 0:01:50]} 31. Rf1 {[%clk 0:00:32]}  Qh4+ {[%clk 0:01:50]} 32. Kg1 {[%clk 0:00:31]}  Re8 {[%clk 0:01:50]} 33. Bf2 {[%clk 0:00:19]}  Qxe4 {[%clk 0:01:45]} 34. Re1 {[%clk 0:00:17]}  Qxg2+ {[%clk 0:01:44]} 35. Kxg2 {[%clk 0:00:18]}  Rb8 {[%clk 0:01:43]} 36. b5 {[%clk 0:00:18]}  f5 {[%clk 0:01:44]} 37. Bxa7 {[%clk 0:00:18]}  Rf8 {[%clk 0:01:43]} 38. b6 {[%clk 0:00:18]}  f4 {[%clk 0:01:44]} 39. b7 {[%clk 0:00:18]}  f3+ {[%clk 0:01:44]} 40. Kf1 {[%clk 0:00:19]}  g4 {[%clk 0:01:44]} 41. b8=Q {[%clk 0:00:18]} 1-0


[Site "https://www.chess.com"]

[Event "Titled Tuesday Blitz May 2 Early 2023"]
[White "James, Stuart"]
[Black "Balague Camps, Marc"]
[WhiteFideId "7400489"]
[BlackFideId "2297914"]
[WhiteElo "1950"]
[BlackElo "2089"]
[Result "0-1"]
[Round "08"]
[TimeControl "180+2"]
[Date "2023.05.02"]
[WhiteClock "0:00:12"]
[BlackClock "0:00:27"]

1. e4 {[%clk 0:03:00]}  c5 {[%clk 0:02:59]} 2. Nf3 {[%clk 0:03:00]}  e6 {[%clk 0:02:59]} 3. d4 {[%clk 0:03:00]}  cxd4 {[%clk 0:03:00]} 4. Nxd4 {[%clk 0:03:00]}  Nc6 {[%clk 0:03:01]} 5. Nb5 {[%clk 0:03:00]}  d6 {[%clk 0:03:01]} 6. Bf4 {[%clk 0:03:00]}  e5 {[%clk 0:03:01]} 7. Be3 {[%clk 0:03:00]}  a6 {[%clk 0:03:01]} 8. N5c3 {[%clk 0:03:01]}  f5 {[%clk 0:03:02]} 9. Bc4 {[%clk 0:02:58]}  Nf6 {[%clk 0:03:02]} 10. f3 {[%clk 0:02:47]}  f4 {[%clk 0:03:01]} 11. Bf2 {[%clk 0:02:45]}  b5 {[%clk 0:02:52]} 12. Bb3 {[%clk 0:02:45]}  Na5 {[%clk 0:02:43]} 13. Bd5 {[%clk 0:02:40]}  Bb7 {[%clk 0:02:42]} 14. O-O {[%clk 0:02:38]}  Be7 {[%clk 0:02:39]} 15. a4 {[%clk 0:02:34]}  b4 {[%clk 0:02:38]} 16. Bxb7 {[%clk 0:02:34]}  Nxb7 {[%clk 0:02:32]} 17. Nd5 {[%clk 0:02:31]}  a5 {[%clk 0:02:33]} 18. Bb6 {[%clk 0:02:30]}  Nxd5 {[%clk 0:02:18]} 19. Bxd8 {[%clk 0:02:28]}  Ne3 {[%clk 0:02:18]} 20. Qd3 {[%clk 0:02:10]}  Rxd8 {[%clk 0:02:04]} 21. Re1 {[%clk 0:01:52]}  O-O {[%clk 0:02:02]} 22. Rxe3 {[%clk 0:01:49]}  fxe3 {[%clk 0:02:01]} 23. Qd5+ {[%clk 0:01:49]}  Rf7 {[%clk 0:02:01]} 24. Qxb7 {[%clk 0:01:49]}  Bh4 {[%clk 0:02:00]} 25. Qd5 {[%clk 0:01:46]}  e2 {[%clk 0:01:55]} 26. Nd2 {[%clk 0:01:41]}  e1=Q+ {[%clk 0:01:51]} 27. Rxe1 {[%clk 0:01:40]}  Bxe1 {[%clk 0:01:52]} 28. Nc4 {[%clk 0:01:32]}  Kf8 {[%clk 0:01:35]} 29. Nxe5 {[%clk 0:01:32]}  Rc7 {[%clk 0:01:30]} 30. Nc6 {[%clk 0:01:17]}  Rdc8 {[%clk 0:01:19]} 31. Qxd6+ {[%clk 0:01:15]}  Kf7 {[%clk 0:01:18]} 32. Ne5+ {[%clk 0:01:14]}  Kg8 {[%clk 0:01:18]} 33. Qe6+ {[%clk 0:01:13]}  Kf8 {[%clk 0:01:19]} 34. Nd7+ {[%clk 0:01:10]}  Rxd7 {[%clk 0:01:14]} 35. Qxd7 {[%clk 0:01:10]}  Rxc2 {[%clk 0:01:15]} 36. Qf5+ {[%clk 0:00:59]}  Ke7 {[%clk 0:01:08]} 37. Qe5+ {[%clk 0:00:55]}  Kf7 {[%clk 0:01:07]} 38. Qd5+ {[%clk 0:00:52]}  Ke8 {[%clk 0:01:01]} 39. e5 {[%clk 0:00:47]}  Rxb2 {[%clk 0:00:46]} 40. e6 {[%clk 0:00:43]}  Rd2 {[%clk 0:00:44]} 41. Qc6+ {[%clk 0:00:35]}  Ke7 {[%clk 0:00:43]} 42. Qb7+ {[%clk 0:00:33]}  Kxe6 {[%clk 0:00:41]} 43. Qe4+ {[%clk 0:00:33]}  Kd6 {[%clk 0:00:40]} 44. Qxe1 {[%clk 0:00:33]}  Rd4 {[%clk 0:00:40]} 45. Qg3+ {[%clk 0:00:32]}  Kc5 {[%clk 0:00:41]} 46. Qxg7 {[%clk 0:00:32]}  b3 {[%clk 0:00:41]} 47. Qa7+ {[%clk 0:00:31]}  Kc4 {[%clk 0:00:40]} 48. Qxa5 {[%clk 0:00:31]}  b2 {[%clk 0:00:39]} 49. Qb5+ {[%clk 0:00:31]}  Kc3 {[%clk 0:00:39]} 50. a5 {[%clk 0:00:28]}  Rb4 {[%clk 0:00:39]} 51. Qe5+ {[%clk 0:00:26]}  Kb3 {[%clk 0:00:36]} 52. Qe3+ {[%clk 0:00:20]}  Ka2 {[%clk 0:00:33]} 53. Qe6+ {[%clk 0:00:19]}  Rb3 {[%clk 0:00:31]} 54. a6 {[%clk 0:00:17]}  b1=Q+ {[%clk 0:00:31]} 55. Kf2 {[%clk 0:00:17]}  Qb2+ {[%clk 0:00:28]} 56. Kg3 {[%clk 0:00:17]}  Qg7+ {[%clk 0:00:28]} 57. Kf2 {[%clk 0:00:17]}  Qa7+ {[%clk 0:00:28]} 58. Kg3 {[%clk 0:00:16]}  Qc7+ {[%clk 0:00:26]} 59. Kf2 {[%clk 0:00:16]}  Qb6+ {[%clk 0:00:26]} 60. Qxb6 {[%clk 0:00:12]}  Rxb6 {[%clk 0:00:27]} 61. a7 {[%clk 0:00:12]}  Ra6 {[%clk 0:00:27]} 0-1


[Site "https://www.chess.com"]